bitfinex/quotes_BTCUSD_20250519
["timestamp","ask_amount","ask_price","bid_price","bid_amount"]
[1747673914397,0.21390675,105310.0,105300.0,0.53943019]
[1747673914535,0.21390675,105310.0,105300.0,0.55842326]
[1747673915326,0.21390675,105310.0,105300.0,0.61842326]
[1747673915573,0.21390675,105310.0,105300.0,1.61842326]
[1747673915784,0.02399073,105310.0,105300.0,1.63741561]
[1747673915938,0.01449496,105310.0,105300.0,1.73472501]
[1747673916140,0.005,105310.0,105300.0,1.76662501]
[1747673916426,0.005,105310.0,105300.0,3.35394801]
[1747673916835,0.005,105310.0,105300.0,3.35698399]
[1747673917498,0.005,105310.0,105300.0,3.39888399]
[1747673918197,0.02848308,105320.0,105310.0,0.58850171]
[1747673918406,0.01898857,105320.0,105310.0,2.34514211]
[1747673918816,0.01898848,105320.0,105310.0,2.34514211]
[1747673919010,0.02848299,105320.0,105310.0,2.34514211]
[1747673919212,0.02848299,105320.0,105310.0,2.34817809]
[1747673919604,0.02848299,105320.0,105310.0,2.27734909]
[1747673919775,0.02848299,105320.0,105310.0,2.27834909]
[1747673919986,0.21838044,105320.0,105310.0,2.02984738]
[1747673920182,0.21838044,105320.0,105310.0,0.34403598]
[1747673920183,0.20888665,105320.0,105310.0,0.34403598]
[1747673920382,0.20888665,105320.0,105310.0,0.34503598]
[1747673921193,0.20888665,105320.0,105310.0,0.54444723]
[1747673921556,0.22787531,105320.0,105310.0,0.55394273]
[1747673922073,0.02848362,105320.0,105310.0,0.56343814]
[1747673922276,0.22787594,105320.0,105310.0,0.57293346]
[1747673922710,0.42749294,105330.0,105320.0,0.20888665]
[1747673923380,0.03048056,105330.0,105320.0,0.21838089]
[1747673923592,0.03048056,105330.0,105320.0,0.55838089]
[1747673923593,0.02098677,105330.0,105320.0,0.55838089]
[1747673923804,0.04097444,105330.0,105320.0,0.55838089]
[1747673924011,0.04197444,105330.0,105320.0,0.55886053]
[1747673924208,0.04197444,105330.0,105320.0,0.56189651]
[1747673924413,0.23185386,105330.0,105320.0,0.56189651]
[1747673924712,0.24134783,105330.0,105320.0,0.56189651]
[1747673925119,0.24134783,105330.0,105320.0,0.55221188]
[1747673925598,0.004,105330.0,105320.0,1.37579779]
[1747673925818,0.03248056,105330.0,105320.0,1.01107079]
[1747673926502,0.22235998,105330.0,105320.0,0.69181588]
[1747673926719,0.04197444,105330.0,105320.0,0.70131012]
[1747673926969,0.03248056,105330.0,105320.0,0.83718512]
[1747673927800,0.04197453,105330.0,105320.0,0.69181588]
[1747673927978,0.2223607,105330.0,105320.0,0.4503198]
[1747673928178,0.2223607,105330.0,105320.0,0.65920645]
[1747673928415,0.2223607,105330.0,105320.0,0.66870087]
[1747673928589,0.2223607,105330.0,105320.0,0.6781952]
[1747673928802,0.2223607,105330.0,105320.0,0.64971194]
[1747673929104,0.21286718,105330.0,105320.0,0.34351562]
[1747673929465,0.22740803,105330.0,105320.0,0.34351562]
[1747673930729,0.22740803,105330.0,105320.0,0.34047964]
[1747673932694,0.22740803,105330.0,105320.0,0.34093731]
[1747673934811,0.25760803,105330.0,105320.0,0.34093731]
[1747673935023,0.28900803,105330.0,105320.0,0.00093731]
[1747673935215,0.38631743,105330.0,105320.0,0.00093731]
[1747673935421,0.61239743,105330.0,105320.0,0.00093731]
[1747673939152,0.46192803,105330.0,105320.0,0.00093731]
[1747673940792,0.52802803,105330.0,105320.0,0.00093731]
[1747673942000,0.29350803,105330.0,105320.0,0.00093731]
[1747673942203,0.22740803,105330.0,105320.0,0.00093731]
[1747673942443,0.22740803,105330.0,105320.0,0.00047964]
[1747673943123,0.46192803,105330.0,105320.0,0.00047964]
[1747673943334,0.46192803,105330.0,105320.0,0.0035158]
[1747673944881,0.49422803,105330.0,105320.0,0.0035158]
[1747673945085,0.52472803,105330.0,105320.0,0.0035158]
[1747673945908,0.94751815,105330.0,105320.0,0.0035158]
[1747673946330,0.62203743,105330.0,105320.0,0.0035158]
[1747673946659,0.62203743,105330.0,105320.0,0.00047964]
[1747673946865,0.01454085,105310.0,105300.0,1.30087638]
[1747673947076,0.2258346,105310.0,105300.0,1.29138025]
[1747673947317,0.22344715,105310.0,105300.0,1.29138025]
[1747673947464,0.21395192,105310.0,105300.0,1.06346192]
[1747673948093,0.21395192,105310.0,105300.0,1.06546192]
[1747673948741,0.21395192,105310.0,105300.0,1.07149844]
[1747673950122,0.21395192,105310.0,105300.0,1.06803652]
[1747673958016,0.44851192,105310.0,105300.0,1.06803652]
[1747673960073,1.27370204,105310.0,105300.0,1.06803652]
[1747673960276,0.94822132,105310.0,105300.0,1.06803652]
[1747673960477,1.27370204,105310.0,105300.0,1.06803652]
[1747673960742,1.27370204,105310.0,105300.0,1.065]
[1747673960920,0.78851192,105310.0,105300.0,1.063]
[1747673961152,0.78851192,105310.0,105300.0,1.06]
[1747673961455,0.78851192,105310.0,105300.0,1.062]
[1747673961868,0.78851192,105310.0,105300.0,1.06]
[1747673963055,0.21395192,105310.0,105300.0,1.06]
[1747673964230,0.01454085,105310.0,105300.0,1.24993352]
[1747673964431,0.04302681,105310.0,105300.0,1.48388245]
[1747673964632,0.03798146,105310.0,105300.0,1.48388245]
[1747673964926,0.02848578,105310.0,105300.0,1.5937246]
[1747673965151,0.03798137,105310.0,105300.0,1.5937246]
[1747673965707,0.04747705,105310.0,105300.0,1.5937246]
[1747673968197,0.04747705,105310.0,105300.0,1.59718652]
[1747673968837,0.23739325,105310.0,105300.0,1.58769057]
[1747673969020,0.23739325,105310.0,105300.0,1.5971867]
[1747673969221,0.23739325,105310.0,105300.0,1.60668274]
[1747673969579,0.037982,105310.0,105300.0,1.60668274]
[1747673970266,0.02848632,105310.0,105300.0,1.60668274]
[1747673971181,0.01899073,105310.0,105300.0,1.60668274]
[1747673971413,0.02848632,105310.0,105300.0,1.60668274]
[1747673971654,0.22789748,105310.0,105300.0,1.44533057]
[1747673971868,0.23294301,105310.0,105300.0,1.06649854]
[1747673972077,0.2234476,105310.0,105300.0,1.20885854]
[1747673972295,0.2234476,105310.0,105300.0,1.06649854]
[1747673973478,0.2234476,105310.0,105300.0,1.06303662]
[1747673973854,0.2234476,105310.0,105300.0,1.23699662]
[1747673975328,0.2234476,105310.0,105300.0,1.20539662]
[1747673976315,0.2234476,105310.0,105300.0,1.20885854]
[1747673979023,0.2234476,105310.0,105300.0,1.06649854]
[1747673979431,0.2234476,105310.0,105300.0,1.06303662]
[1747673979634,0.2234476,105310.0,105300.0,1.27196321]
[1747673979816,0.2234476,105310.0,105300.0,1.30296321]
[1747673980054,0.2234476,105310.0,105300.0,1.34295952]
[1747673980415,0.2234476,105310.0,105300.0,1.33346321]
[1747673981931,0.21395201,105310.0,105300.0,1.33346339]
[1747673982488,0.21395201,105310.0,105300.0,1.27196339]
[1747673982870,0.2139521,105310.0,105300.0,1.25643206]
[1747673983040,0.23294283,105310.0,105300.0,1.30822513]
[1747673983273,0.23294283,105310.0,105300.0,1.30822531]
[1747673983476,0.2139521,105310.0,105300.0,1.29872873]
[1747673983682,0.20445633,105310.0,105300.0,1.10879521]
[1747673984295,0.20445633,105310.0,105300.0,1.09929854]
[1747673984640,0.20445633,105310.0,105300.0,1.10879521]
[1747673985061,0.2139521,105310.0,105300.0,1.30822531]
[1747673985474,0.2139521,105310.0,105300.0,1.3177218]
[1747673986390,0.2139521,105310.0,105300.0,1.3272182]
[1747673987195,0.2139521,105310.0,105300.0,1.3177218]
[1747673988772,0.2139521,105310.0,105300.0,1.30822531]
[1747673989317,0.2139521,105310.0,105300.0,1.29872873]
[1747673989576,0.2139521,105310.0,105300.0,1.09929854]
[1747673989879,0.20445633,105310.0,105300.0,1.09929854]
[1747673991408,0.20445633,105310.0,105300.0,1.13189854]
[1747673995545,0.20445633,105310.0,105300.0,1.09929854]
[1747673998140,0.03353158,105310.0,105300.0,1.33822513]
[1747673998346,0.22344706,105310.0,105300.0,1.35902765]
[1747673998563,0.23294283,105310.0,105300.0,1.13879521]
[1747673998793,0.23294283,105310.0,105300.0,1.12929854]
[1747673998999,0.2234476,105310.0,105300.0,1.32872864]
[1747673999229,0.2234476,105310.0,105300.0,1.33822513]
[1747674000184,0.2139521,105310.0,105300.0,1.06649854]
[1747674000404,0.3759615,105310.0,105300.0,1.06649854]
[1747674000624,0.70144222,105310.0,105300.0,1.06649854]
[1747674000949,0.6118815,105310.0,105300.0,1.06649854]
[1747674001152,0.6118815,105310.0,105300.0,1.00849854]
[1747674001563,0.3112615,105310.0,105300.0,1.00849854]
[1747674001764,0.2139521,105310.0,105300.0,1.00849854]
[1747674001966,0.19941125,105310.0,105300.0,1.15085854]
[1747674002114,0.19941125,105310.0,105300.0,1.18105854]
[1747674002318,0.19941125,105310.0,105300.0,1.21355854]
[1747674002954,0.19941125,105310.0,105300.0,1.40003014]
[1747674003156,0.2139521,105310.0,105300.0,1.21009662]
[1747674003358,0.02403608,105310.0,105300.0,1.42851907]
[1747674003560,0.03353104,105310.0,105300.0,1.40952672]
[1747674003758,0.04302636,105310.0,105300.0,1.41902312]
[1747674004107,0.0284829,105320.0,105310.0,0.0306]
[1747674004309,0.25429812,105320.0,105310.0,0.0306]
[1747674004528,0.24241652,105320.0,105310.0,0.24254319]
[1747674004673,0.24241652,105320.0,105310.0,0.21194319]
[1747674004875,0.23292228,105320.0,105310.0,0.21194319]
[1747674005072,0.0335296,105320.0,105310.0,0.25203833]
[1747674005280,0.23530928,105320.0,105310.0,0.24254319]
[1747674005573,0.23292183,105320.0,105310.0,0.24254319]
[1747674005784,0.23392183,105320.0,105310.0,0.24254319]
[1747674005980,0.22542759,105320.0,105310.0,0.24600529]
[1747674006387,0.02603509,105320.0,105310.0,0.2649962]
[1747674006611,0.0379166,105320.0,105310.0,0.2649962]
[1747674007119,0.02842236,105320.0,105310.0,0.23439611]
[1747674007346,0.02842236,105320.0,105310.0,0.24389125]
[1747674007483,0.01654085,105320.0,105310.0,0.30659125]
[1747674007684,0.002,105320.0,105310.0,1.01942165]
[1747674008032,0.002,105320.0,105310.0,1.35942165]
[1747674009311,0.002,105320.0,105310.0,1.40132165]
[1747674009515,0.002,105320.0,105310.0,1.43282981]
[1747674009717,0.002,105320.0,105310.0,1.428768]
[1747674010071,0.001,105320.0,105310.0,1.428768]
[1747674010507,0.0024808,105330.0,105320.0,0.28328098]
[1747674010707,0.0024808,105330.0,105320.0,4.2016783]
[1747674010873,0.0024808,105330.0,105320.0,4.30163492]
[1747674011074,0.0024808,105330.0,105320.0,4.68291055]
[1747674011468,0.0024808,105330.0,105320.0,4.71138355]
[1747674012698,0.43999849,105350.0,105340.0,0.2804395]
[1747674012948,0.43999849,105350.0,105340.0,2.95604656]
[1747674013116,0.43999849,105350.0,105340.0,1.80279856]
[1747674014062,0.43999849,105350.0,105340.0,1.80379856]
[1747674014471,0.43999849,105350.0,105340.0,1.81032482]
[1747674015616,0.43999849,105350.0,105340.0,1.71021682]
[1747674016645,0.43999849,105350.0,105340.0,1.85253682]
[1747674017536,0.43999849,105350.0,105340.0,1.01767382]
[1747674017689,0.43999849,105350.0,105340.0,0.94165982]
[1747674018098,0.44948993,105350.0,105340.0,0.74420418]
[1747674018297,0.45898128,105350.0,105340.0,0.80420418]
[1747674018499,0.4684729,105350.0,105340.0,0.80420418]
[1747674018701,0.46847362,105350.0,105340.0,0.55563375]
[1747674018907,0.7240664,105350.0,105340.0,0.06408428]
[1747674019715,0.7240664,105350.0,105340.0,0.06104766]
[1747674020919,0.6935664,105350.0,105340.0,0.06104766]
[1747674021323,0.6633664,105350.0,105340.0,0.06104766]
[1747674021844,0.6633664,105350.0,105340.0,0.26989492]
[1747674022083,0.65387469,105350.0,105340.0,0.26989492]
[1747674023206,0.65387469,105350.0,105340.0,0.2698951]
[1747674023803,0.64438271,105350.0,105340.0,0.06104766]
[1747674029488,0.19935437,105340.0,105330.0,0.43287423]
[1747674029716,0.19935437,105340.0,105330.0,0.91519576]
[1747674029911,0.19935437,105340.0,105330.0,0.87720376]
[1747674030108,0.19935437,105340.0,105330.0,0.69824376]
[1747674030810,0.19935437,105340.0,105330.0,0.63537376]
[1747674031585,0.19935437,105340.0,105330.0,0.64040933]
[1747674032229,0.00024623,105360.0,105350.0,0.28041877]
[1747674032439,0.00024623,105360.0,105350.0,1.48117817]
[1747674032641,0.00024623,105360.0,105350.0,1.33885817]
[1747674032851,0.00024623,105360.0,105350.0,1.48117817]
[1747674033060,0.00024623,105360.0,105350.0,1.34189374]
[1747674033287,0.00973668,105360.0,105350.0,0.68301574]
[1747674033505,0.00973668,105360.0,105350.0,0.83288374]
[1747674033712,0.00024623,105360.0,105350.0,1.11887274]
[1747674033908,0.00024623,105360.0,105350.0,0.97655274]
[1747674034188,0.05275032,105360.0,105350.0,0.54337101]
[1747674034413,0.22359451,105360.0,105350.0,0.14835557]
[1747674035042,0.28659451,105360.0,105350.0,0.14635557]
[1747674035304,0.28659451,105360.0,105350.0,0.00403557]
[1747674035521,0.28659451,105360.0,105350.0,0.001]
[1747674035961,0.19933535,105350.0,105340.0,0.54884631]
[1747674036609,0.19933535,105350.0,105340.0,0.53935343]
[1747674036981,0.19933535,105350.0,105340.0,0.53289583]
[1747674037378,0.19933535,105350.0,105340.0,0.55188168]
[1747674037576,0.19933535,105350.0,105340.0,0.56337438]
[1747674038193,0.19933535,105350.0,105340.0,0.56337447]
[1747674040466,0.19933535,105350.0,105340.0,0.55388168]
[1747674040638,0.18984337,105350.0,105340.0,0.55388168]
[1747674040902,0.19223082,105350.0,105340.0,0.34503537]
[1747674041315,0.02403373,105340.0,105330.0,0.37117968]
[1747674041516,0.02403373,105340.0,105330.0,0.40397968]
[1747674041740,0.00024623,105360.0,105330.0,1.34566915]
[1747674041953,0.00024623,105360.0,105350.0,0.21831877]
[1747674042168,0.04325951,105360.0,105350.0,0.21831877]
[1747674042377,0.01478708,105360.0,105350.0,0.24871877]
[1747674042588,0.00024623,105360.0,105350.0,1.19512417]
[1747674043241,0.00973668,105360.0,105350.0,1.25512417]
[1747674043665,0.00024623,105360.0,105350.0,1.62642309]
[1747674043876,0.00024623,105360.0,105350.0,1.73840417]
[1747674046108,0.00024623,105360.0,105350.0,1.74305782]
[1747674046482,0.00024623,105360.0,105350.0,1.60077782]
[1747674046680,0.00024623,105360.0,105350.0,1.74305782]
[1747674047712,0.00024623,105360.0,105350.0,2.74305782]
[1747674049427,0.00024623,105360.0,105350.0,2.60077782]
[1747674049850,0.00024623,105360.0,105350.0,2.74305782]
[1747674051806,0.00024623,105360.0,105350.0,2.73840417]
[1747674054034,0.00024623,105360.0,105350.0,2.74143836]
[1747674054868,0.00024623,105360.0,105350.0,2.81881154]
[1747674055059,0.00024623,105360.0,105350.0,2.74143836]
[1747674057766,0.00024623,105360.0,105350.0,2.59915836]
[1747674057939,0.00024623,105360.0,105350.0,2.74143836]
[1747674058147,0.00024623,105360.0,105350.0,2.59915836]
[1747674058397,0.00024623,105360.0,105350.0,2.74143836]
[1747674058576,0.00024623,105360.0,105350.0,2.50908296]
[1747674058794,0.00024623,105360.0,105350.0,2.68448786]
[1747674061507,0.00024623,105360.0,105350.0,2.67983836]
[1747674061715,0.00024623,105360.0,105350.0,2.74123836]
[1747674064832,0.00024623,105360.0,105350.0,2.74472592]
[1747674065031,0.00024623,105360.0,105350.0,2.75065265]
[1747674065236,0.00024623,105360.0,105350.0,2.60837265]
[1747674065435,0.00024623,105360.0,105350.0,2.75061265]
[1747674066643,0.00220951,105370.0,105360.0,0.55829806]
[1747674066859,0.00220951,105370.0,105360.0,4.26641646]
[1747674067090,0.00220951,105370.0,105360.0,4.24874419]
[1747674067543,0.00220951,105370.0,105360.0,4.14336119]
[1747674067756,0.00220951,105370.0,105360.0,4.15104422]
[1747674067964,0.00220951,105370.0,105360.0,4.14511815]
[1747674068394,0.00220951,105370.0,105360.0,4.15104422]
[1747674069235,0.00220951,105370.0,105360.0,3.79676522]
[1747674069447,0.00220951,105370.0,105360.0,3.11676222]
[1747674069717,0.00220951,105370.0,105360.0,2.25793122]
[1747674069718,0.02118906,105370.0,105360.0,2.25793122]
[1747674069930,0.0636787,105370.0,105360.0,0.71095022]
[1747674070140,0.04469915,105370.0,105360.0,0.95735122]
[1747674070348,0.04469915,105370.0,105360.0,0.61735122]
[1747674070563,0.04469915,105370.0,105360.0,0.95735122]
[1747674070745,0.04469915,105370.0,105360.0,0.9573519]
[1747674070962,0.06367888,105370.0,105360.0,0.9573519]
[1747674071178,0.07316906,105370.0,105360.0,0.9212779]
[1747674071420,0.06367888,105370.0,105360.0,0.9212779]
[1747674072036,0.07316906,105370.0,105360.0,0.8114579]
[1747674072262,0.09457888,105370.0,105360.0,0.8114579]
[1747674072444,0.08508888,105370.0,105360.0,0.81145792]
[1747674072706,0.12099727,105370.0,105360.0,0.57190852]
[1747674072922,0.31080524,105370.0,105360.0,0.70465791]
[1747674073151,0.10912009,105370.0,105360.0,0.71414854]
[1747674073370,0.11150754,105370.0,105360.0,0.71414854]
[1747674073597,0.10201745,105370.0,105360.0,0.95811054]
[1747674073805,0.11150754,105370.0,105360.0,0.95811054]
[1747674074019,0.11150763,105370.0,105360.0,0.95811054]
[1747674074427,0.11150763,105370.0,105360.0,0.95811055]
[1747674074428,0.11150754,105370.0,105360.0,0.95811055]
[1747674074861,0.11150754,105370.0,105360.0,0.95218375]
[1747674075292,0.06873,105370.0,105360.0,0.95218375]
[1747674075509,0.04522009,105370.0,105360.0,0.95218375]
[1747674075721,0.00220951,105370.0,105360.0,1.04949315]
[1747674076142,0.00212206,105370.0,105360.0,1.04949315]
[1747674076569,0.00212206,105370.0,105360.0,1.11249315]
[1747674077501,0.00212206,105370.0,105360.0,1.10784365]
[1747674078260,0.00212206,105370.0,105360.0,1.51604365]
[1747674078686,0.00212206,105370.0,105360.0,1.51604378]
[1747674083442,0.00212206,105370.0,105360.0,1.52197021]
[1747674083964,0.00212206,105370.0,105360.0,1.49057021]
[1747674085125,0.0116117,105370.0,105360.0,1.49057021]
[1747674085231,0.00212206,105370.0,105360.0,1.49057021]
[1747674085435,0.00212206,105370.0,105360.0,1.49057037]
[1747674086097,0.0116117,105370.0,105360.0,1.31673037]
[1747674086302,0.06139161,105370.0,105360.0,1.45897037]
[1747674086521,0.06139152,105370.0,105360.0,1.45897037]
[1747674086725,0.76109728,105410.0,105380.0,0.34]
[1747674086929,0.18977132,105390.0,105380.0,0.34]
[1747674087133,0.18977132,105390.0,105380.0,0.342]
[1747674087343,0.19215877,105390.0,105380.0,0.34792659]
[1747674087544,0.19215877,105390.0,105380.0,0.342]
[1747674087753,0.19215877,105390.0,105380.0,0.34792659]
[1747674087961,0.0094882,105390.0,105380.0,0.55674195]
[1747674088170,0.02846451,105390.0,105380.0,0.56030446]
[1747674088380,0.21823583,105390.0,105380.0,0.55977645]
[1747674088589,0.19944384,105420.0,105410.0,0.18973531]
[1747674088806,0.19944384,105420.0,105400.0,0.21819855]
[1747674088807,0.01897262,105410.0,105400.0,0.6909517]
[1747674089011,0.02845857,105410.0,105400.0,0.79774813]
[1747674089216,0.02845857,105410.0,105400.0,0.80367341]
[1747674089421,0.01897217,105410.0,105400.0,0.8067077]
[1747674089625,0.03794506,105410.0,105400.0,0.80078245]
[1747674089828,0.03794497,105410.0,105400.0,0.8067077]
[1747674090155,0.02845848,105410.0,105400.0,0.8067077]
[1747674090362,0.0097239,105420.0,105410.0,0.55819451]
[1747674090575,0.23738322,105420.0,105410.0,0.65550409]
[1747674090786,0.03818004,105420.0,105410.0,0.68040137]
[1747674091199,0.04766581,105420.0,105410.0,0.68040137]
[1747674091423,0.04766581,105420.0,105410.0,0.68343569]
[1747674092045,0.23738313,105420.0,105410.0,0.66446334]
[1747674092258,0.2234682,105420.0,105410.0,0.34895925]
[1747674092460,0.2234682,105420.0,105410.0,0.54798132]
[1747674092461,0.2555682,105420.0,105410.0,0.54798132]
[1747674092676,0.2555682,105420.0,105410.0,0.34875917]
[1747674092871,0.24608252,105420.0,105410.0,0.34875922]
[1747674093520,0.24608252,105420.0,105410.0,0.34283432]
[1747674093729,0.27678252,105420.0,105410.0,0.34283432]
[1747674094177,0.60226324,105420.0,105410.0,0.00303432]
[1747674094389,0.69957264,105420.0,105410.0,0.00303432]
[1747674095442,0.22328866,105390.0,105380.0,0.01503515]
[1747674095624,0.22328866,105390.0,105380.0,0.00554569]
[1747674095778,0.22328866,105390.0,105380.0,0.34554569]
[1747674095982,0.22328866,105390.0,105380.0,0.35503515]
[1747674096184,0.22328866,105390.0,105380.0,0.60482448]
[1747674096384,0.22328866,105390.0,105380.0,0.40554569]
[1747674096794,0.22328866,105390.0,105380.0,0.40508194]
[1747674096996,0.22328866,105390.0,105380.0,0.60436073]
[1747674097215,0.22328866,105390.0,105380.0,0.62333938]
[1747674097420,0.02846496,105390.0,105380.0,0.73962689]
[1747674097597,0.02846496,105390.0,105380.0,0.73962626]
[1747674098003,0.21823628,105390.0,105380.0,0.73013743]
[1747674098415,0.21823628,105390.0,105380.0,0.72064851]
[1747674098635,0.21823628,105390.0,105380.0,2.50582361]
[1747674098813,0.21823628,105390.0,105380.0,2.51531262]
[1747674099419,0.22772484,105390.0,105380.0,2.14182095]
[1747674099617,0.22772484,105390.0,105380.0,2.15130996]
[1747674100027,0.22772484,105390.0,105380.0,2.15480791]
[1747674100440,0.22772484,105390.0,105380.0,2.16429683]
[1747674100640,0.01897595,105390.0,105380.0,2.15480791]
[1747674100839,0.02846415,105390.0,105380.0,2.16429674]
[1747674101046,0.04744118,105390.0,105380.0,2.16429674]
[1747674101635,0.03795262,105390.0,105380.0,2.16429674]
[1747674101848,0.22772385,105390.0,105380.0,2.16429674]
[1747674102111,0.23721241,105390.0,105380.0,2.16429674]
[1747674102439,0.03795325,105390.0,105380.0,2.16429683]
[1747674102653,0.02846469,105390.0,105380.0,2.17378566]
[1747674102863,0.03795325,105390.0,105380.0,2.17378566]
[1747674103069,0.22772457,105390.0,105380.0,2.17378566]
[1747674104091,0.03795325,105390.0,105380.0,2.17378566]
[1747674104710,0.22772457,105390.0,105380.0,2.1453189]
[1747674104922,0.21823646,105390.0,105380.0,2.16429719]
[1747674105348,0.23277731,105390.0,105380.0,2.1737862]
[1747674106534,0.23277731,105390.0,105380.0,2.18327512]
[1747674106740,0.02402878,105390.0,105380.0,2.17378584]
[1747674106945,0.04300536,105390.0,105380.0,2.18327467]
[1747674107367,0.24226515,105390.0,105380.0,2.17378584]
[1747674108220,0.04300536,105390.0,105380.0,2.17378584]
[1747674108432,0.05249383,105390.0,105380.0,2.17378584]
[1747674108823,0.24226578,105390.0,105380.0,2.16429692]
[1747674109034,0.23277758,105390.0,105380.0,2.14531908]
[1747674109225,0.21380073,105390.0,105380.0,2.16429773]
[1747674109682,0.21380073,105390.0,105380.0,2.17378692]
[1747674109886,0.21380073,105390.0,105380.0,2.18327602]
[1747674110227,0.21380073,105390.0,105380.0,2.17378656]
[1747674110445,0.22328902,105390.0,105380.0,2.17378656]
[1747674110658,0.22328902,105390.0,105380.0,2.17827539]
[1747674111177,0.22328902,105390.0,105380.0,2.16878656]
[1747674111407,0.22328902,105390.0,105380.0,2.17827548]
[1747674111955,0.22328902,105390.0,105380.0,1.93095762]
[1747674112133,0.22328902,105390.0,105380.0,1.94993609]
[1747674112371,0.21380073,105390.0,105380.0,1.64385889]
[1747674112576,0.27700073,105390.0,105380.0,0.40357989]
[1747674112989,0.21380073,105390.0,105380.0,0.40008194]
[1747674113201,0.24590073,105390.0,105380.0,0.40008194]
[1747674114855,0.24590073,105390.0,105380.0,0.58987127]
[1747674115067,0.21380073,105390.0,105380.0,0.59936073]
[1747674115513,0.21380073,105390.0,105380.0,0.61833938]
[1747674115738,0.20872857,105400.0,105390.0,0.20873494]
[1747674115952,0.02846469,105390.0,105380.0,0.42353074]
[1747674116171,0.05488074,105390.0,105380.0,0.42353074]
[1747674116379,0.06436921,105390.0,105380.0,0.42353074]
[1747674117482,0.05488074,105390.0,105380.0,0.42353074]
[1747674117694,0.25414062,105390.0,105380.0,0.42353092]
[1747674118005,0.06198185,105390.0,105380.0,0.37947447]
[1747674118219,0.05488074,105390.0,105380.0,0.37947447]
[1747674118632,0.06436921,105390.0,105380.0,0.37947447]
[1747674119110,0.06436984,105390.0,105380.0,0.37947447]
[1747674120069,0.06436984,105390.0,105380.0,0.36998564]
[1747674120498,0.25414116,105390.0,105380.0,0.36049672]
[1747674120697,0.25175371,105390.0,105380.0,0.36998555]
[1747674121100,0.25175371,105390.0,105370.0,0.19330523]
[1747674121101,0.01454085,105380.0,105370.0,0.54279478]
[1747674121421,0.0240295,105380.0,105370.0,0.90979682]
[1747674121597,0.0240295,105380.0,105370.0,0.97089682]
[1747674121810,0.03351689,105390.0,105380.0,0.2182569]
[1747674122045,0.05249329,105390.0,105380.0,0.2182569]
[1747674122214,0.05249329,105390.0,105380.0,0.21825708]
[1747674122215,0.24465287,105390.0,105380.0,0.21825708]
[1747674122418,0.2327774,105390.0,105380.0,0.21825708]
[1747674122622,0.22328911,105390.0,105380.0,0.20876807]
[1747674122820,0.03351734,105390.0,105380.0,0.22774591]
[1747674123093,0.23516467,105390.0,105380.0,0.21825708]
[1747674123292,0.23277722,105390.0,105380.0,0.20876807]
[1747674123523,0.22328911,105390.0,105380.0,0.20876807]
[1747674124085,0.21380073,105390.0,105380.0,0.19927879]
[1747674124341,0.21380073,105390.0,105380.0,0.20876816]
[1747674124559,0.21380073,105390.0,105380.0,0.21825744]
[1747674124774,0.21380073,105390.0,105380.0,0.22774645]
[1747674124998,0.21380073,105390.0,105380.0,0.22774654]
[1747674125231,0.23279784,105380.0,105370.0,0.85298236]
[1747674125479,0.04300788,105380.0,105370.0,0.9799919]
[1747674125700,0.00948793,105390.0,105380.0,0.22773048]
[1747674125910,0.2232696,105400.0,105390.0,0.1992597]
[1747674126116,0.03351698,105390.0,105380.0,0.37955042]
[1747674126293,0.04300536,105390.0,105380.0,0.81263342]
[1747674126438,0.04300536,105390.0,105380.0,0.66481942]
[1747674126637,0.04300536,105390.0,105380.0,0.65357242]
[1747674127273,0.06198167,105390.0,105380.0,0.6535726]
[1747674127690,0.0335168,105390.0,105380.0,0.6217726]
[1747674127889,0.04300518,105390.0,105380.0,0.6217726]
[1747674128499,0.04300518,105390.0,105380.0,0.62643734]
[1747674128901,0.05249365,105390.0,105380.0,0.62643734]
[1747674129428,0.05249365,105390.0,105380.0,0.65893734]
[1747674130054,0.05249365,105390.0,105380.0,0.62643734]
[1747674130502,0.05249365,105390.0,105380.0,0.96643734]
[1747674132180,0.01897487,105400.0,105380.0,0.99953734]
[1747674132398,0.21579374,105410.0,105400.0,0.18975332]
[1747674132612,0.21579374,105410.0,105400.0,0.53924089]
[1747674132613,0.49315374,105410.0,105400.0,0.53924089]
[1747674132826,0.49315374,105410.0,105400.0,0.52975332]
[1747674133032,0.49315374,105410.0,105400.0,0.34]
[1747674133443,0.49315374,105410.0,105400.0,0.34303378]
[1747674133643,0.21579374,105410.0,105400.0,0.34303378]
[1747674134549,0.03551302,105410.0,105400.0,0.55176197]
[1747674134750,0.24422158,105410.0,105400.0,0.62124918]
[1747674134875,0.23473563,105410.0,105400.0,0.61176197]
[1747674135076,0.22524941,105410.0,105400.0,0.61176197]
[1747674135303,0.22524941,105410.0,105400.0,0.61526184]
[1747674135934,0.20627616,105410.0,105400.0,0.60577454]
[1747674136147,0.20627616,105410.0,105400.0,0.40653365]
[1747674136348,0.20627616,105410.0,105400.0,0.41602131]
[1747674136675,0.20627616,105410.0,105400.0,0.60577463]
[1747674137524,0.54627616,105410.0,105400.0,0.06653365]
[1747674138695,0.20627616,105410.0,105400.0,0.06303378]
[1747674140542,0.20627616,105410.0,105400.0,0.07252144]
[1747674140719,0.23473554,105410.0,105400.0,0.30176215]
[1747674140920,0.23473608,105410.0,105400.0,0.30176233]
[1747674141078,0.22524959,105410.0,105400.0,0.27176233]
[1747674141277,0.22524959,105410.0,105400.0,0.28124981]
[1747674142511,0.22524959,105410.0,105400.0,0.29073711]
[1747674143130,0.22524959,105410.0,105400.0,0.28124981]
[1747674144210,0.21576292,105410.0,105400.0,0.27176233]
[1747674144835,0.21576292,105410.0,105400.0,0.28124981]
[1747674145251,0.24796292,105410.0,105400.0,0.06303378]
[1747674145917,0.21576292,105410.0,105400.0,0.06303378]
[1747674146496,0.24656292,105410.0,105400.0,0.06303378]
[1747674146903,0.60274364,105410.0,105400.0,0.06303378]
[1747674147106,0.27726292,105410.0,105400.0,0.06303378]
[1747674148454,0.24656292,105410.0,105400.0,0.06303378]
[1747674151248,0.21576292,105410.0,105400.0,0.06303378]
[1747674151800,0.24726292,105410.0,105400.0,0.06303378]
[1747674155222,0.70295304,105410.0,105400.0,0.06303378]
[1747674155432,1.04047304,105410.0,105400.0,0.00303378]
[1747674155609,1.20271304,105410.0,105400.0,0.00303378]
[1747674155753,1.19271304,105410.0,105400.0,0.00303378]
[1747674155953,0.87723232,105410.0,105400.0,0.00303378]
[1747674156476,0.2647408,105400.0,105390.0,0.00349987]
[1747674156681,0.3620502,105400.0,105390.0,0.00349987]
[1747674156878,0.3291502,105400.0,105390.0,0.00349987]
[1747674157089,0.6042302,105400.0,105390.0,0.00349987]
[1747674157299,0.24638165,105400.0,105390.0,0.00349987]
[1747674157505,0.1992408,105400.0,105390.0,0.03409987]
[1747674157681,0.1992408,105400.0,105390.0,0.06669987]
[1747674157881,0.21172819,105400.0,105390.0,0.25647119]
[1747674158137,0.02702833,105400.0,105390.0,0.25297132]
[1747674158468,0.22121495,105400.0,105390.0,0.61194799]
[1747674158646,0.03346163,105400.0,105390.0,0.62143601]
[1747674158801,0.23270261,105400.0,105390.0,0.62143601]
[1747674159012,0.23775652,105400.0,105390.0,0.62143601]